Cogmind - Beta 13 @@@ ROGUE MODE // 2024.04.01 @ 06:57:44 Player: puppuppit Result: Destroyed by G-67 Veteran with Field Laser Performance ------------- Evolutions (6) 3000 Regions Visited (30) 6000 Robots Destroyed (505) 2525 Value Destroyed (22443) 22443 Prototype IDs (55) 1100 Alien Tech Used (0) 0 Bonus (16529) 16529 TOTAL SCORE: 51597 Bonus ------- Triggered High Security 1000 High Alert Combat Kills 5515 Follower Combat Kills 3185 Entered Garrisons 1000 Aligned with FarCom 300 Met Imprinter 300 Acquired ECA 300 Met Warlord at Base 500 MAIN.C Attacked Warlord 500 Warlord Defense Kills 5642 Friendly Fire -1713 Cogmind --------- Core Integrity 0/1150 Matter 325/350 Energy 97/100 System Corruption 3% Temperature Cool (64) Movement Hovering (66) Location -4/Factory Parts ------- > --- POWER (1) -------- (None) > --- PROPULSION (5) --- Gyrokinetic Inverter Improved Gyrokinetic Inverter Improved Gyrokinetic Inverter Combat Antigrav System > --- UTILITY (11) ----- Small Matter Pod Experimental Optical Array Experimental Core Analyzer Experimental Core Analyzer Advanced Transmission Jammer Hacking Suite Hacking Suite Hacking Suite > --- WEAPON (2) ------- Phase Cannon Enhanced Coil Gun > --- INVENTORY (5) ---- Improved Gyrokinetic Inverter Advanced Transmission Jammer Mobile Refinery Mk. CCLXVII Wave Gun Peak State ------------ > --- POWER ------------ Light Quantum Reactor > --- PROPULSION ------- Improved Linear Gravjet Improved Linear Gravjet Improved Linear Gravjet Antigrav Array > --- UTILITY ---------- Advanced Heat Sink Medium Storage Unit Machine Analyzer Experimental Optical Array 0b10 Decoder Chip [Scout] Advanced Targeting Computer Experimental Core Analyzer Experimental Core Analyzer Improved Armor Integrity Analyzer Improved Armor Integrity Analyzer Improved Light Armor Plating > --- WEAPON ----------- Helical Railgun Hypervelocity Mass Driver > --- INVENTORY -------- Light Antimatter Reactor Improved Linear Gravjet Improved Linear Gravjet Encrypted Comm Array Advanced Transmission Jammer Experimental Propulsion Shielding Improved Light Armor Plating Improved Remote Force Field Mobile Refinery Mk. CCLXVII Hypervelocity Mass Driver [Rating: 130] Favorites ----------- Power Light Angular Momentum Engine Engine Light Angular Momentum Engine Power Core Enhanced Fission Core Reactor Light Antimatter Reactor Propulsion VTOL Module Leg Carbon-fiber Leg Wheel Wheel Hover Unit Gravmag System Flight Unit VTOL Module Utility Medium Storage Unit Device Advanced Heat Sink Storage Medium Storage Unit Processor Experimental Core Analyzer Hackware Makeshift Hacking Suite Protection Improved Light Armor Plating Weapon Helical Railgun Energy Gun Wave Gun Energy Cannon Phase Cannon Ballistic Gun Helical Railgun Ballistic Cannon Hypervelocity Mass Driver Launcher Heavy Missile Launcher Special Weapon RU-N14's Throwing Claymores v3 Slashing Weapon Katana Build | -11 -10 -10 -9 -9 -9 -8 -8 -8 -7 -7 -7 -7 -6 -6 -6 -6 -6 -6 -6 -6 -6 -6 -5 -5 -5 -5 -4 -4 -4 -4 ------- Run | Yrd Mat Min Mat Min Exi Min Mat Gar Fac Low Low Zio Pro Fac Gar Fac Gar Fac Gar Fac Low Low Fac Upp Upp War Pro Fac Gar Fac Slots Evolved 12 | . . . 2 . . . 2 . 2 . . . . 2 . . . . . . . . 2 . . . . 2 . . Power . | . . . . . . . . . . . . . . . . . . . . . . . . . . . . . . . Propulsion 3 | . . . 2 . . . . . 1 . . . . . . . . . . . . . . . . . . . . . Utility 9 | . . . . . . . 2 . 1 . . . . 2 . . . . . . . . 2 . . . . 2 . . Weapon . | . . . . . . . . . . . . . . . . . . . . . . . . . . . . . . . Parts Attached 602 | 7 27 9 78 1 3 . 4 27 25 6 . 16 4 25 14 12 70 10 69 30 2 8 26 6 . 34 18 44 12 15 Power 64 | 1 3 1 9 . . . 2 4 5 . . 3 1 2 2 . 5 2 7 1 . 1 2 . . 5 . 5 1 2 Engine 29 | 1 3 1 2 . . . 2 3 3 . . 3 1 2 1 . 1 2 1 1 . . . . . . . . . 2 Core 23 | . . . 7 . . . . 1 2 . . . . . 1 . 4 . 4 . . 1 2 . . 1 . . . . Reactor 12 | . . . . . . . . . . . . . . . . . . . 2 . . . . . . 4 . 5 1 . Propulsion 139 | 2 11 2 26 . . . . 3 6 2 . 2 1 6 3 4 13 . 31 4 . 1 2 . . 1 3 13 1 2 Treads . | . . . . . . . . . . . . . . . . . . . . . . . . . . . . . . . Leg 13 | . . . . . . . . . . . . . . . . . 1 . 12 . . . . . . . . . . . Wheel 9 | 2 7 . . . . . . . . . . . . . . . . . . . . . . . . . . . . . Hover 33 | . 2 . . . . . . . . . . . . . . . . . 8 4 . 1 2 . . 1 1 11 1 2 Flight 84 | . 2 2 26 . . . . 3 6 2 . 2 1 6 3 4 12 . 11 . . . . . . . 2 2 . . Utility 234 | 2 7 2 17 . 1 . 2 3 11 1 . 6 2 14 7 7 24 5 26 22 . 1 16 6 . 12 12 13 7 8 Device 127 | 1 3 2 8 . . . . . 2 . . 3 1 13 6 4 17 3 18 18 . . 8 4 . 3 2 3 3 5 Storage 16 | 1 2 . 4 . . . . . 2 . . . . . . . 1 . 2 1 . . . . . 1 . 1 . 1 Processor 25 | . 2 . 3 . . . 1 1 2 . . . . . . 1 1 1 6 1 . . . 1 . 1 1 3 . . Hackware 9 | . . . . . . . . . 1 . . 1 . . 1 1 . . . . . . 1 . . . . 1 1 2 Protection 57 | . . . 2 . 1 . 1 2 4 1 . 2 1 1 . 1 5 1 . 2 . 1 7 1 . 7 9 5 3 . Artifact . | . . . . . . . . . . . . . . . . . . . . . . . . . . . . . . . Weapon 165 | 2 6 4 26 1 2 . . 17 3 3 . 5 . 3 2 1 28 3 5 3 2 5 6 . . 16 3 13 3 3 Energy Gun 4 | 1 . . 1 . . . . . . . . . . . . . . . . . . . . . . . . 1 . 1 Energy Cannon 3 | . . . . . . . . . . . . . . . . . . . . . . . . . . . . 2 . 1 Ballistic Gun 97 | 1 6 3 21 . 2 . . 12 3 2 . 3 . . 2 . 12 2 5 1 2 3 4 . . 9 1 2 . 1 Ballistic Cannon 28 | . . . . . . . . . . . . . . . . . 16 1 . . . . . . . 1 1 7 2 . Launcher 18 | . . 1 4 1 . . . . . 1 . . . 3 . 1 . . . 2 . 2 1 . . . . 1 1 . Special Weapon 9 | . . . . . . . . . . . . 1 . . . . . . . . . . 1 . . 6 1 . . . Impact Weapon . | . . . . . . . . . . . . . . . . . . . . . . . . . . . . . . . Slashing Weapon 6 | . . . . . . . . 5 . . . 1 . . . . . . . . . . . . . . . . . . Piercing Weapon . | . . . . . . . . . . . . . . . . . . . . . . . . . . . . . . . Special Melee Weapon . | . . . . . . . . . . . . . . . . . . . . . . . . . . . . . . . Unidentified Prototypes 21 | . . 1 2 . . . 1 . 2 . . 3 . . . . . 1 4 . . . 1 . . 3 . 2 . 1 Corrupted Parts 1 | . . . . . . . . . . . . . . . . . . . . . . . . . . . 1 . . . System Corruption 1 | . . . . . . . . . . . . . . . . . . . . . . . . . . . 1 . . . Parts Lost 68 | . 4 . 4 . . . . 4 2 . . . . 1 4 2 3 7 5 1 . . 2 . . 1 6 1 17 4 Power 11 | . . . 2 . . . . 2 . . . . . 1 . . . 1 . 1 . . . . . . . . 2 2 Propulsion 28 | . 3 . 2 . . . . 2 1 . . . . . 1 1 3 5 3 . . . 1 . . . 3 . 3 . Utility 22 | . 1 . . . . . . . 1 . . . . . 2 . . 1 2 . . . . . . 1 2 . 10 2 Weapon 7 | . . . . . . . . . . . . . . . 1 1 . . . . . . 1 . . . 1 1 2 . Highest Loss Streak 15 | . 2 . 2 . . . . 3 1 . . . . 1 1 1 2 4 4 1 . . 2 . . 1 4 1 15 3 To Critical Strikes . | . . . . . . . . . . . . . . . . . . . . . . . . . . . . . . . Average Slot Usage (%) 92 | . 93 85 97 100 91 . 86 89 95 96 100 96 100 99 97 92 86 84 89 92 93 93 94 94 94 92 90 95 86 61 Engine 3 | . 11 7 2 11 11 . 9 5 1 7 7 7 7 6 5 6 4 4 2 2 6 5 . . . . . . . 3 Core 1 | . . . 8 . . . . 1 5 . . . . . . . 1 1 2 . . . 5 5 5 3 . . . . Leg 1 | . . . . . . . . . . . . . . . . . . . 12 . . . . . . . . . . . Wheel 1 | . 21 . . . . . . . . . . . . . . . . . . . . . . . . . . . . . Hover 9 | . 5 13 . . . . . . . . . . . . . . . . 9 25 26 26 23 23 23 23 18 20 24 16 Flight 18 | . . 14 43 44 44 . 36 34 33 38 38 38 38 33 33 30 32 28 6 . . . . . . . 3 1 . . Device 10 | . 7 8 6 . . . . . 6 15 15 11 7 19 20 20 17 23 14 5 . . 2 9 11 10 5 8 4 5 Storage 6 | . 14 14 11 11 11 . 9 9 7 7 7 7 7 6 6 6 5 6 5 6 6 6 5 5 5 5 5 5 4 2 Processor 14 | . 4 6 1 . . . 5 9 10 9 7 1 . . . 3 2 2 22 33 33 33 27 23 23 24 29 36 26 15 Hackware 2 | . . . . . . . . . . . . 2 7 6 6 7 6 6 . . . . 5 5 5 3 . 1 5 6 Protection 6 | . . . 2 11 11 . 9 15 11 5 7 9 15 12 9 5 6 4 . . 6 6 9 5 5 5 10 5 6 . Ballistic Gun 9 | . 25 20 20 19 12 . 18 13 15 6 7 6 7 2 3 6 5 4 11 11 6 9 10 11 11 7 8 1 . 4 Launcher 1 | . . . . 2 1 . . . . 5 7 7 7 10 9 2 . . . 1 6 2 . . . . . . 2 . Naked Turns . | . . . . . . . . . . . . . . . . . . . . . . . . . . . . . . . Heaviest Build 89 | 14 18 14 24 20 20 20 20 20 30 35 35 35 36 43 43 41 89 29 41 45 44 44 51 54 54 57 47 57 56 18 Greatest Support 96 | 20 32 14 26 20 20 20 20 20 32 37 37 37 40 43 43 42 40 30 96 54 54 54 54 54 54 56 56 58 58 51 Greatest Overweight (x) 4 | . 4 1 1 . . . . 1 . 1 . . . . . 1 3 1 2 . . . . . . 1 1 1 . . Average Overweight (x) . | . . . . . . . . . . . . . . . . . . . . . . . . . . . . . . . Largest Inventory Capacity 10 | 8 10 10 10 10 10 10 10 10 10 10 10 10 10 10 10 10 10 10 10 10 10 10 10 10 10 10 10 10 10 5 Average Capacity 9 | 7 9 10 10 10 10 10 10 10 10 10 10 10 10 10 10 10 9 10 9 10 10 10 10 10 10 10 10 10 8 5 Most Carried 10 | 4 10 10 10 10 10 10 10 10 10 10 10 10 10 10 10 10 10 10 10 10 10 10 10 10 10 10 10 10 10 5 Average Carried 9 | 1 8 9 9 10 9 10 9 9 9 10 10 9 10 9 9 9 9 9 9 9 10 9 9 9 10 9 9 9 8 4 Final Capacity 10 | 8 10 10 10 10 10 10 10 10 10 10 10 10 10 10 10 10 10 10 10 10 10 10 10 10 10 10 10 10 5 5 Final Carried 10 | 4 10 10 10 10 10 10 10 10 10 10 10 10 10 10 10 10 10 10 10 10 10 10 10 10 10 10 10 10 5 4 Class Distribution -------------------- 42% | Scavenger-Mutant 19% | Scavenger-Sprinter 10% | Derelict-Sprinter 8% | Sprinter 8% | Scavenger-Scout 4% | Mutant Dominant Class ---------------- Scavenger-Mutant | -10/Materials Scavenger-Mutant | -10/Mines Sprinter | -9/Materials Sprinter | -9/Mines Sprinter | -9/Exiles Sprinter | -8/Mines Sprinter | -8/Materials Sprinter | -8/Garrison Scavenger-Sprinter | -7/Factory Scavenger-Sprinter | -7/Lower Caves Derelict-Sprinter | -7/Lower Caves Derelict-Sprinter | -7/Zion Derelict-Sprinter | -6/Proximity Caves Derelict-Sprinter | -6/Factory Scavenger-Sprinter | -6/Garrison Commander-Sprinter | -6/Factory Scavenger-Sprinter | -6/Garrison Scavenger-Sprinter | -6/Factory Scavenger-Mutant | -6/Garrison Scavenger-Mutant | -6/Factory Scavenger-Mutant | -6/Lower Caves Scavenger-Mutant | -6/Lower Caves Scavenger-Mutant | -5/Factory Scavenger-Mutant | -5/Upper Caves Scavenger-Mutant | -5/Upper Caves Scavenger-Mutant | -5/Warlord Scavenger-Mutant | -4/Proximity Caves Scavenger-Scout | -4/Factory Scavenger-Scout | -4/Garrison Scavenger-Mutant | -4/Factory Resources | -11 -10 -10 -9 -9 -9 -8 -8 -8 -7 -7 -7 -7 -6 -6 -6 -6 -6 -6 -6 -6 -6 -6 -5 -5 -5 -5 -4 -4 -4 -4 ----------- Run | Yrd Mat Min Mat Min Exi Min Mat Gar Fac Low Low Zio Pro Fac Gar Fac Gar Fac Gar Fac Low Low Fac Upp Upp War Pro Fac Gar Fac Matter Collected 17060 | 256 509 103 1580 71 34 . 63 789 669 313 168 162 275 422 731 437 1494 380 1231 1352 330 255 930 276 155 951 860 1506 445 313 Remotely . | . . . . . . . . . . . . . . . . . . . . . . . . . . . . . . . Salvage Created 18292 | 120 695 44 1671 54 . . 66 791 809 208 332 . 195 195 420 624 901 202 1196 2533 253 513 1110 135 240 1605 1624 1185 329 242 Parts 1063 | 13 55 10 138 1 . . 5 45 56 6 17 . 8 11 22 62 32 8 73 132 9 26 65 14 18 58 78 58 15 28 Haulers Intercepted 17 | . 2 . 6 . . . 1 . 3 . . . . . . 1 . . . . . . 1 . . . . 2 . 1 Recyclers Shooed 18 | 1 2 . . . . . . . . . . . . . . . . 1 . 6 . . . . . . 1 6 . 1 Parts Field Recycled . | . . . . . . . . . . . . . . . . . . . . . . . . . . . . . . . Retrieved Matter . | . . . . . . . . . . . . . . . . . . . . . . . . . . . . . . . Parts Self-Destructed 179 | . . . . . . . . . . 10 8 . 10 . . . . . . . 9 32 . 13 18 . 79 . . . Prevented 9 | . . . . . . . . . . . . . . . . . . . . . . 4 . 5 . . . . . . Kills | -11 -10 -10 -9 -9 -9 -8 -8 -8 -7 -7 -7 -7 -6 -6 -6 -6 -6 -6 -6 -6 -6 -6 -5 -5 -5 -5 -4 -4 -4 -4 ------- Run | Yrd Mat Min Mat Min Exi Min Mat Gar Fac Low Low Zio Pro Fac Gar Fac Gar Fac Gar Fac Low Low Fac Upp Upp War Pro Fac Gar Fac Combat Hostiles Destroyed 342 | . 14 6 35 3 . . . 20 8 7 12 . 7 1 17 7 27 . 22 27 4 11 13 2 10 44 19 12 14 . Guns 192 | . 14 3 22 1 . . . 20 8 . . . 1 . 1 4 20 . 22 12 4 4 10 2 10 16 16 2 . . Cannons 21 | . . . . . . . . . . . . . . . . . 7 . . . . . . . . 4 . 8 2 . AOE 129 | . . 3 13 2 . . . . . 7 12 . 6 1 16 3 . . . 15 . 7 3 . . 24 3 2 12 . Classes Destroyed 27 | 2 7 . 2 1 . . . 3 . 1 . . 1 1 . 2 1 . 2 1 . . 1 . . 2 . . . . Worker 43 | . 1 . 7 . . . 1 . 6 . . . . 1 . 4 . 2 . 4 . . 5 . . . . 5 . 7 Builder 25 | . 1 . 3 . . . . . 3 . . . . . . 7 . 1 . 4 . . . . . . 1 2 . 3 Tunneler 6 | 3 . . . . . . . . . . . . . . . . . . . 1 . . 1 . . . . 1 . . Hauler 17 | . 2 . 6 . . . 1 . 3 . . . . . . 1 . . . . . . 1 . . . . 2 . 1 Recycler 21 | 1 2 . 2 . . . . . 1 . . . . 1 . . . 1 . 8 . . . . . . 2 3 . . Minesweeper 6 | . . . . . . . . . . 1 1 . 1 . . . . . . . . 1 . 1 . . 1 . . . Mechanic 6 | . . . 1 . . . . . . . . . . 1 . . . . . 2 . . 1 . . 1 . . . . Operator 11 | . 1 . 2 . . . . . 1 . . . . . . . . . . 1 . . . . . . . 4 . 2 Drone 3 | . . . . . . . . . . . . . 1 . . . . . . . . . . . . . 2 . . . Watcher 24 | . 2 . 5 . . . . . 4 . . . . 1 . 1 1 . 1 4 . . 1 . . . 2 1 . 1 Swarmer 116 | . 9 6 18 . . . . 7 5 1 8 . 2 . 10 . 12 . 5 4 . 4 1 . 10 3 3 4 4 . Cutter 6 | . . . . . . . . . . . . . . . . 1 . . 1 . . . . . . . . . 4 . Grunt 114 | . 5 . 9 . . . . 7 2 3 3 . 3 . 5 6 9 . 7 13 3 2 8 . . 15 7 2 5 . Brawler 16 | . . . . . . . . 1 . 3 . . 1 . . 1 1 . 1 3 . 1 . . . 4 . . . . Duelist 7 | . . . . . . . . 1 . . . . . . . . 1 . . 2 . . . . . 2 1 . . . Protector 5 | . . . . . . . . . . . . . . . . . 1 . . . . . . . . 3 1 . . . Sentry 30 | . . . 8 1 . . . 3 1 . . . . . 2 . 3 . 2 2 . 2 1 . . . 4 1 . . Demolisher 2 | . . . . . . . . . . . . . . . . . . . . . . . . . . 2 . . . . Specialist 7 | . . . . . . . . . . . . . . . . . . . 4 . . . . . . 3 . . . . Hunter 10 | . . . . . . . . 1 . . 1 . . . . . . . 1 . . 1 . 2 . 3 1 . . . Programmer 16 | . . . . . . . . . . . . . . 1 . . . . 1 2 . 1 2 . . 4 . 5 . . Heavy 1 | . . . . . . . . . . . . . . . . . . . . 1 . . . . . . . . . . Behemoth 2 | . . . . . . . . . . . . . . . . . . . . . . . 1 . . . . . 1 . Enhanced Grunt 1 | . . . . . . . . . . . . . . . . . . . . . . . . . . 1 . . . . Striker 1 | . . . . . . . . . . . . . . . . . . . . . . . . . . 1 . . . . Executioner 5 | . . . . . . . . . . . . . . . . . . . 1 . . . . . . 4 . . . . Assembled 2 | . . . . 2 . . . . . . . . . . . . . . . . . . . . . . . . . . Guerrilla 1 | . . . . . . . . . . . . . . . 1 . . . . . . . . . . . . . . . Mutant 3 | . . . . . . . . . . . . . . . . 1 . . . . 1 . . . . 1 . . . . Best Kill Streak 10 | 4 6 3 10 2 . . 1 4 7 3 4 . 4 2 6 7 4 2 3 10 2 4 5 2 5 9 5 5 10 4 Combat Bots Only 10 | . 6 3 9 2 . . . 4 6 3 4 . 4 1 6 3 4 . 3 7 2 4 4 2 5 8 4 4 10 . Max Kills in Single Turn 6 | 1 1 2 4 2 . . 1 1 1 1 4 . 2 1 3 4 1 1 2 6 1 3 4 1 2 5 2 2 3 3 Gunslinging 1 | . . . . . . . . . . . . . . . . . . . . . . . 1 . . . . . . . Exploded 4 | . . 2 3 1 . . . . . 1 4 . 2 1 3 2 . . . 3 . 3 3 . . 4 2 1 3 . Melee . | . . . . . . . . . . . . . . . . . . . . . . . . . . . . . . . Uniques/NPCs Destroyed . | . . . . . . . . . . . . . . . . . . . . . . . . . . . . . . . Combat | -11 -10 -10 -9 -9 -9 -8 -8 -8 -7 -7 -7 -7 -6 -6 -6 -6 -6 -6 -6 -6 -6 -6 -5 -5 -5 -5 -4 -4 -4 -4 -------- Run | Yrd Mat Min Mat Min Exi Min Mat Gar Fac Low Low Zio Pro Fac Gar Fac Gar Fac Gar Fac Low Low Fac Upp Upp War Pro Fac Gar Fac Hostile Shots Fired 1614 | . 79 23 163 5 . . 2 112 112 7 16 . 8 6 59 14 178 80 105 78 4 31 62 38 35 39 96 67 178 17 Missed 693 | . 15 8 62 4 . . 1 43 56 2 11 . 4 5 28 7 84 48 38 44 . 13 27 18 10 15 38 28 77 7 Damage Taken 14704 | . 600 124 1277 17 . . 16 968 491 114 75 . 107 118 605 301 1055 425 1026 565 76 297 676 281 178 452 960 1107 2348 445 Core 3143 | . 130 33 292 14 . . . 220 107 23 30 . 18 30 18 61 159 37 266 113 . 52 99 44 37 56 142 188 888 86 Absorbed by Shields 539 | . . . . . . . . 69 . . . . . . 10 . 14 . . 24 . . 92 42 98 177 . . 13 . Redirected to Shielding 566 | . . . 2 3 . . . 45 26 29 . . 31 . 102 . . . . . . . . . . 86 84 104 54 . Ignored by Resistances 366 | . . . . . . . . . . . . . . . . . 107 26 41 . . . 5 47 74 66 . . . . Regen/Repaired (Parts) 721 | . . . 68 . . . . . . . . . . 83 . 247 . . . 75 . . 15 . . 233 . . . . Core Remaining (%) 52 | 100 . 34 . . . 23 . 60 . . . . 74 . . . . . . . . 13 . . . . 62 . . . Volleys Fired 1569 | 8 95 11 191 6 . . 3 123 73 20 21 1 28 18 45 62 129 39 64 110 38 14 53 13 19 107 87 127 34 30 Largest 2 | 2 2 2 2 2 . . 2 2 2 2 2 1 1 1 2 1 2 1 2 2 1 2 2 2 2 2 2 2 2 2 Hottest 132 | 70 70 40 56 53 . . 46 46 56 72 72 33 39 39 79 43 81 30 68 79 40 79 78 71 71 78 78 132 127 111 Shots Fired 2322 | 16 188 19 346 12 . . 6 202 142 22 22 1 28 18 48 62 162 39 110 169 38 24 93 22 34 131 129 160 46 33 Gun 1945 | 16 188 16 336 10 . . 6 202 142 5 13 1 17 6 13 53 109 39 110 152 33 19 92 22 34 120 128 37 . 26 Cannon 216 | . . . . . . . . . . . . . . . . . 53 . . . . . . . . . . 121 35 7 Launcher 148 | . . 3 10 2 . . . . . 17 9 . 11 12 35 9 . . . 17 5 5 . . . . . 2 11 . Special 13 | . . . . . . . . . . . . . . . . . . . . . . . 1 . . 11 1 . . . Kinetic 2112 | 8 166 16 336 10 . . 6 202 142 5 13 1 17 6 13 53 162 39 110 152 33 19 92 22 34 120 128 149 35 23 Thermal 47 | 8 22 . . . . . . . . . . . . . . . . . . . . . . . . . . 7 . 10 Explosive 160 | . . 3 10 2 . . . . . 17 9 . 11 12 35 9 . . . 17 5 5 . . . 11 1 2 11 . Electromagnetic 2 | . . . . . . . . . . . . . . . . . . . . . . . . . . . . 2 . . Robot Hit Streak 23 | 8 9 3 15 5 . . 4 19 9 4 5 . 6 5 5 7 10 6 23 9 7 6 9 8 4 16 19 22 5 2 Robot Miss Streak 12 | 1 8 3 6 1 . . 2 5 5 2 3 . 3 2 1 4 12 7 3 4 3 3 2 2 4 3 4 4 5 3 Penetration Max 2 | . . . . . . . . . 1 . . . . . . 1 1 . 1 2 1 . 2 . 1 2 2 1 . 2 Secondary Targets 11 | . 1 . . . . . . 2 . . . . . . . . . . 3 . . . 2 . 2 1 . . . . Max Gunslinging Chain 1 | . 1 . . . . . . 1 . . . . . . . . . . 1 . . . 1 . 1 1 . . . . Shots Hit Robots 1359 | 12 108 9 229 8 . . 4 125 87 11 10 . 13 6 16 21 110 32 62 103 19 13 63 15 14 82 83 73 20 11 Core Hits 1075 | 5 47 9 106 4 . . 2 41 66 23 21 . 14 13 37 32 113 40 39 97 12 25 44 6 11 103 56 55 37 17 Critical Kills 62 | . 1 . . . . . . . . . . . . . . 1 . . 3 15 3 4 6 . . 7 12 9 1 . Critical Parts Destroyed 75 | . . . 2 . . . . 2 1 . 1 . . . 1 . . . 1 22 5 2 9 3 . 6 9 7 4 . Critical Strikes 149 | 1 1 . 2 . . . . 2 1 . 1 . . . 1 1 . . 5 38 8 6 16 3 . 14 22 21 6 . Burn 1 | 1 . . . . . . . . . . . . . . . . . . . . . . . . . . . . . . Destroy 143 | . 1 . 2 . . . . 2 1 . 1 . . . 1 1 . . 5 38 8 6 16 3 . 13 22 17 6 . Blast 4 | . . . . . . . . . . . . . . . . . . . . . . . . . . . . 4 . . Sever 1 | . . . . . . . . . . . . . . . . . . . . . . . . . . 1 . . . . Melee Attacks 23 | . . . . . . . . 17 . . . 6 . . . . . . . . . . . . . . . . . . Impact . | . . . . . . . . . . . . . . . . . . . . . . . . . . . . . . . Slashing 23 | . . . . . . . . 17 . . . 6 . . . . . . . . . . . . . . . . . . Piercing . | . . . . . . . . . . . . . . . . . . . . . . . . . . . . . . . Sneak Attacks . | . . . . . . . . . . . . . . . . . . . . . . . . . . . . . . . Combat Hostiles . | . . . . . . . . . . . . . . . . . . . . . . . . . . . . . . . Follow-up Attacks . | . . . . . . . . . . . . . . . . . . . . . . . . . . . . . . . Damage Inflicted 46460 | 131 934 274 3450 203 . . 62 1756 1403 973 1147 . 1160 646 2466 1653 2291 608 1690 4601 340 791 2040 340 403 7777 2666 3059 2404 1192 Guns 21287 | 131 934 59 2298 121 . . 62 1756 1403 67 150 . 224 81 64 534 1388 608 1690 1792 235 181 1438 340 403 2381 1880 640 . 427 Cannons 2962 | . . . . . . . . . . . . . . . . . 903 . . . . . . . . . . 1686 373 . Explosions 21778 | . . 215 1152 82 . . . . . 906 997 . 936 565 2402 1119 . . . 2809 105 610 550 . . 5072 731 733 2029 765 Melee . | . . . . . . . . . . . . . . . . . . . . . . . . . . . . . . . Ramming 54 | . . . . . . . . . . . . . . . . . . . . . . . 52 . . . . . 2 . Kinetic 23899 | 33 732 59 2298 121 . . 62 1756 1403 67 150 . 224 81 64 534 2291 608 1690 1792 235 181 1438 340 403 2381 1880 2326 373 377 Thermal 2488 | 98 202 . 134 . . . . . . . . . . 31 . . . . . 404 . . 359 . . . 153 485 . 622 Explosive 19640 | . . 215 1018 82 . . . . . 906 997 . 936 534 2402 1119 . . . 2405 105 610 191 . . 5072 578 248 2029 193 Electromagnetic . | . . . . . . . . . . . . . . . . . . . . . . . . . . . . . . . Impact . | . . . . . . . . . . . . . . . . . . . . . . . . . . . . . . . Slashing 379 | . . . . . . . . . . . . . . . . . . . . . . . . . . 324 55 . . . Piercing . | . . . . . . . . . . . . . . . . . . . . . . . . . . . . . . . Highest Corruption 4 | . 4 4 4 4 4 4 . . . . . . . . . . 1 1 1 3 . . 3 3 3 3 1 3 3 3 Average Corruption 2 | . 3 4 4 4 4 4 . . . . . . . . . . 1 1 1 1 . . 1 3 3 3 1 1 3 3 Corruption Purged 5 | . . . . . . . . . . . . . . . . . . . . 5 . . . . . . . . . . Corruption Blocked 4 | . . . . . . . . . . . . . . . . . . . . 4 . . . . . . . . . . Effects 111 | . 3 5 29 3 3 . . . . . . . . . . . 4 3 17 1 . . 3 6 3 1 3 14 6 7 Message Errors 26 | . 2 3 9 . 1 . . . . . . . . . . . . 1 . . . . . 2 . . . 6 2 . Matter Fused 30 | . . . 8 2 1 . . . . . . . . . . . 1 1 6 . . . 1 1 . . 2 2 2 3 Heat Flow Errors 13 | . 1 1 4 . . . . . . . . . . . . . 1 . 5 . . . . . . . . 1 . . Energy Discharges 9 | . . . 1 . . . . . . . . . . . . . . . 1 . . . 1 1 2 . . 1 1 1 Parts Rejected 2 | . . . . . . . . . . . . . . . . . . . . 1 . . . . . . . 1 . . Parts Fused 2 | . . . 1 . . . . . . . . . . . . . . . . . . . . . 1 . . . . . Data Loss (minor) 13 | . . 1 4 1 . . . . . . . . . . . . . 1 2 . . . . 1 . 1 . 1 . 1 Data Loss (major) 7 | . . . . . 1 . . . . . . . . . . . 1 . 1 . . . 1 1 . . . 1 . 1 Misfires 5 | . . . . . . . . . . . . . . . . . 1 . 2 . . . . . . . . 1 . 1 Alerts 1 | . . . . . . . . . . . . . . . . . . . . . . . . . . . . . 1 . Weapon Failures 3 | . . . 2 . . . . . . . . . . . . . . . . . . . . . . . 1 . . . Overload Shots . | . . . . . . . . . . . . . . . . . . . . . . . . . . . . . . . Overflow Damage 851 | . . 21 56 . . . . 16 . 19 5 . . 3 124 39 . . . 139 . 40 45 . . 25 51 93 135 40 Projectiles 38 | . . . . . . . . . . . . . . . . . . . . . . . . . . . . 38 . . Explosions 813 | . . 21 56 . . . . 16 . 19 5 . . 3 124 39 . . . 139 . 40 45 . . 25 51 55 135 40 Melee . | . . . . . . . . . . . . . . . . . . . . . . . . . . . . . . . Knockbacks 14 | . . . . . . . . . . . . . . . . . 4 . . . . . 1 . . . . 9 . . Impact 1 | . . . . . . . . . . . . . . . . . . . . . . . 1 . . . . . . . Kinetic 12 | . . . . . . . . . . . . . . . . . 3 . . . . . . . . . . 9 . . Secondary 1 | . . . . . . . . . . . . . . . . . 1 . . . . . . . . . . . . . Self-Inflicted Damage 905 | . . . 61 . . . . 155 . . . . 37 59 129 81 . . . . . . 92 . . . . 90 201 . Shots 19 | . . . 2 . . . . 1 . . . . 1 2 4 2 . . . . . . 1 . . . . 3 3 . Rammed 2 | . . . . . . . . . . . . . . . . . . . . . . . 1 . . . . . 1 . Targets Rammed 2 | . . . . . . . . . . . . . . . . . . . . . . . 1 . . . . . 1 . Kicked . | . . . . . . . . . . . . . . . . . . . . . . . . . . . . . . . Crushed . | . . . . . . . . . . . . . . . . . . . . . . . . . . . . . . . Highest Temperature 364 | 80 284 240 230 8 . . 5 14 90 27 12 18 69 29 364 73 133 7 201 149 87 85 336 . . 1 31 222 292 61 Average Temperature 40 | 36 125 125 41 3 . . 3 5 31 3 7 7 25 7 193 11 50 2 32 41 26 33 100 . . 1 13 31 79 24 Received Heat Transfer 2969 | . 108 . 339 . . . . 279 114 18 . . 9 . 390 42 243 99 150 135 36 27 274 30 . 45 199 72 309 51 Effects 6 | . . . . . . . . . . . . . . . 4 . . . . . . . . . . . . . 2 . Shutdowns 1 | . . . . . . . . . . . . . . . 1 . . . . . . . . . . . . . . . Energy Bleed 2 | . . . . . . . . . . . . . . . 2 . . . . . . . . . . . . . . . Interference 2 | . . . . . . . . . . . . . . . . . . . . . . . . . . . . . 2 . Matter Decay 1 | . . . . . . . . . . . . . . . 1 . . . . . . . . . . . . . . . Siege Activations . | . . . . . . . . . . . . . . . . . . . . . . . . . . . . . . . Robots Corrupted . | . . . . . . . . . . . . . . . . . . . . . . . . . . . . . . . Combat Hostiles . | . . . . . . . . . . . . . . . . . . . . . . . . . . . . . . . Parts Fried 1 | . . . . . . . . . . . . . . . . . . . . 1 . . . . . . . . . . Impact Corruptions . | . . . . . . . . . . . . . . . . . . . . . . . . . . . . . . . Robots Melted . | . . . . . . . . . . . . . . . . . . . . . . . . . . . . . . . Combat Hostiles . | . . . . . . . . . . . . . . . . . . . . . . . . . . . . . . . Parts Melted 7 | . 2 . . . . . . . . . . . . . . . . . . 1 . 1 . . . . 3 . . . Heat Transferred 2706 | 370 592 . 100 . . . . . . . . . . 50 . . . . . 300 . . 250 . . . 120 400 . 524 Parts Sabotaged . | . . . . . . . . . . . . . . . . . . . . . . . . . . . . . . . Parts Stolen . | . . . . . . . . . . . . . . . . . . . . . . . . . . . . . . . Parts Stripped . | . . . . . . . . . . . . . . . . . . . . . . . . . . . . . . . Power Chain Reactions . | . . . . . . . . . . . . . . . . . . . . . . . . . . . . . . . Alert | -11 -10 -10 -9 -9 -9 -8 -8 -8 -7 -7 -7 -7 -6 -6 -6 -6 -6 -6 -6 -6 -6 -6 -5 -5 -5 -5 -4 -4 -4 -4 ------- Run | Yrd Mat Min Mat Min Exi Min Mat Gar Fac Low Low Zio Pro Fac Gar Fac Gar Fac Gar Fac Low Low Fac Upp Upp War Pro Fac Gar Fac Peak Influence 2656 | 20 228 218 1186 534 . . 43 1224 1064 . . . . 365 1342 2153 2625 1693 2656 2360 . . 1741 . . . . 1377 1716 1423 Initial 1498 | . 13 59 6 426 . . . 30 642 . . . . 23 150 704 1498 1377 1136 1394 . . 870 . . . . 372 963 861 Average 1054 | 7 102 142 704 453 . . 7 583 792 . . . . 138 938 1197 2042 1535 1796 1569 . . 1292 . . . . 618 1409 1175 Maximum Alert Level 5 | . 1 1 4 2 . . . 4 3 . . . . 1 4 5 5 5 5 5 . . 5 . . . . 4 5 4 Low Security (%) 15 | 100 94 76 4 . . 100 100 27 . . . . . 65 4 . . . . . . . . . . . . . . . Level 1 6 | . 5 23 9 . . . . 15 . . . . . 34 1 . . . . . . . . . . . . 24 . . Level 2 13 | . . . 39 100 . . . 15 27 . . . . . 15 . . . . . . . . . . . . 57 . . Level 3 15 | . . . 29 . . . . 22 72 . . . . . 36 51 . . . . . . 32 . . . . 10 6 35 Level 4 28 | . . . 18 . . . . 18 . . . . . . 42 32 9 58 52 79 . . 62 . . . . 7 66 64 Level 5 19 | . . . . . . . . . . . . . . . . 12 90 15 47 20 . . 5 . . . . . 27 . High Security . | . . . . . . . . . . . . . . . . 2 . 25 . . . . . . . . . . . . Max Security . | . . . . . . . . . . . . . . . . . . . . . . . . . . . . . . . Squads Dispatched 81 | . 3 . 5 . . . 1 . 12 . . . . 6 . 10 . 6 . 17 . 1 8 . . . 1 9 . 2 Investigation 19 | . 2 . 2 . . . . . 4 . . . . 3 . 2 . 1 . 1 . . 1 . . . 1 1 . 1 Extermination 9 | . . . . . . . . . 1 . . . . 1 . . . . . 2 . . 1 . . . . 4 . . Reinforcement 24 | . 1 . 2 . . . 1 . 1 . . . . 1 . 5 . 1 . 5 . . 3 . . . . 3 . 1 Assault 18 | . . . 1 . . . . . 3 . . . . 1 . 1 . 4 . 5 . 1 1 . . . . 1 . . Garrison 11 | . . . . . . . . . 3 . . . . . . 2 . . . 4 . . 2 . . . . . . . Intercept . | . . . . . . . . . . . . . . . . . . . . . . . . . . . . . . . Searches Triggered . | . . . . . . . . . . . . . . . . . . . . . . . . . . . . . . . Construction Impeded 9 | . . . 1 . . . . . . . . . . 1 . 2 . . . 3 . . . . . . . 1 . 1 Haulers Reinforced 6 | . . . . . . . . . . . . . . . . 1 . . . . . . 3 . . . . 2 . . Active Scanning Responses . | . . . . . . . . . . . . . . . . . . . . . . . . . . . . . . . Cargo Convoy Interrupts 1 | . . . . . . . . . . . . . . . . . . . . 1 . . . . . . . . . . Stealth | -11 -10 -10 -9 -9 -9 -8 -8 -8 -7 -7 -7 -7 -6 -6 -6 -6 -6 -6 -6 -6 -6 -6 -5 -5 -5 -5 -4 -4 -4 -4 --------- Run | Yrd Mat Min Mat Min Exi Min Mat Gar Fac Low Low Zio Pro Fac Gar Fac Gar Fac Gar Fac Low Low Fac Upp Upp War Pro Fac Gar Fac Distress Signals 20 | . 2 . 3 1 . . . . . . . . . 1 . . 2 . 1 1 . . 2 . . 1 2 3 . 1 Communications Jammed 16 | . . . . . . . . . . . . . . . . . . . . . . . . . . . . 16 . . Distress Signals 16 | . . . . . . . . . . . . . . . . . . . . . . . . . . . . 16 . . Times Spotted 721 | . 25 6 52 6 . . 1 33 33 17 11 . 6 11 29 35 44 22 42 71 5 11 32 5 14 88 32 45 32 13 Peak Tracking Total 16 | . 6 3 6 3 . . 1 5 9 9 4 . 4 5 8 6 7 15 4 16 4 10 16 4 5 12 6 11 15 5 Tactical Retreats 65 | . 1 . 3 2 . . . 9 5 6 . . . . 1 1 4 . 1 4 1 1 2 3 2 3 8 5 1 2 Traps | -11 -10 -10 -9 -9 -9 -8 -8 -8 -7 -7 -7 -7 -6 -6 -6 -6 -6 -6 -6 -6 -6 -6 -5 -5 -5 -5 -4 -4 -4 -4 ------- Run | Yrd Mat Min Mat Min Exi Min Mat Gar Fac Low Low Zio Pro Fac Gar Fac Gar Fac Gar Fac Low Low Fac Upp Upp War Pro Fac Gar Fac Traps Triggered 46 | . 5 . 1 . . . . 12 1 . . . . . 5 . 9 1 6 3 . . 1 . . . . 1 . 1 Indirectly . | . . . . . . . . . . . . . . . . . . . . . . . . . . . . . . . Trap Hack Attempts . | . . . . . . . . . . . . . . . . . . . . . . . . . . . . . . . Triggered . | . . . . . . . . . . . . . . . . . . . . . . . . . . . . . . . Disarmed . | . . . . . . . . . . . . . . . . . . . . . . . . . . . . . . . Reprogrammed 6 | . 1 . 5 . . . . . . . . . . . . . . . . . . . . . . . . . . . Reused 2 | . . . 1 . . . . . . . . . . . . . . . . . . . . . . . 1 . . . Traps Extracted . | . . . . . . . . . . . . . . . . . . . . . . . . . . . . . . . Installed 36 | . . . . . . . . . . . 12 . 11 . . . . . . . . 6 . . . . 7 . . . Triggered 21 | . . . 1 . . . . . . . . . . . . . . . . . . 1 . 1 . 16 2 . . . Machines | -11 -10 -10 -9 -9 -9 -8 -8 -8 -7 -7 -7 -7 -6 -6 -6 -6 -6 -6 -6 -6 -6 -6 -5 -5 -5 -5 -4 -4 -4 -4 ---------- Run | Yrd Mat Min Mat Min Exi Min Mat Gar Fac Low Low Zio Pro Fac Gar Fac Gar Fac Gar Fac Low Low Fac Upp Upp War Pro Fac Gar Fac Machines Disabled 170 | . . . 3 1 . . . 9 . 2 . . 2 3 11 30 5 . 13 18 1 1 26 . 1 2 1 20 6 15 Max in Single Turn 22 | . . . 2 1 . . . 2 . 1 . . 2 3 1 4 1 . 2 13 1 1 22 . 1 2 1 5 2 5 Garrison Access 5 | . . . . . . . . . . . . . . 1 . . . 1 . 1 . . 1 . . . . . . 1 Garrison Relay 22 | . . . . . . . . 6 . . . . . . 5 . 4 . 6 . . . . . . . . . 1 . Phase Generator 3 | . . . . . . . . 1 . . . . . . . . . . 1 . . . . . . . . . 1 . Machines Repaired . | . . . . . . . . . . . . . . . . . . . . . . . . . . . . . . . Machines Dismantled . | . . . . . . . . . . . . . . . . . . . . . . . . . . . . . . . Machines Sabotaged . | . . . . . . . . . . . . . . . . . . . . . . . . . . . . . . . Overloaded Fab Kills . | . . . . . . . . . . . . . . . . . . . . . . . . . . . . . . . Hacking | -11 -10 -10 -9 -9 -9 -8 -8 -8 -7 -7 -7 -7 -6 -6 -6 -6 -6 -6 -6 -6 -6 -6 -5 -5 -5 -5 -4 -4 -4 -4 --------- Run | Yrd Mat Min Mat Min Exi Min Mat Gar Fac Low Low Zio Pro Fac Gar Fac Gar Fac Gar Fac Low Low Fac Upp Upp War Pro Fac Gar Fac Machines Accessed 111 | . 6 . 15 1 5 . 2 4 13 . 1 . 1 7 1 6 1 4 . 11 1 1 8 1 1 1 3 12 . 5 Terminals 55 | . 5 . 10 1 . . 1 4 9 . . . 1 1 1 1 1 . . 5 1 . 4 . . . 1 7 . 2 Fabricators 11 | . . . . . . . . . 2 . . . . 1 . 1 . . . 3 . . 1 . . . 1 1 . 1 Repair Stations 12 | . 1 . 2 . . . . . . . . . . 2 . 2 . 1 . 1 . . 1 . . . . 2 . . Recycling Units 5 | . . . 1 . . . . . 1 . . . . . . . . . . . . . . . . . 1 1 . 1 Scanalyzers 6 | . . . 2 . . . . . . . . . . 2 . 1 . 1 . . . . . . . . . . . . Garrison Access 12 | . . . . . . . 1 . 1 . . . . 1 . 1 . 2 . 2 . . 2 . . . . 1 . 1 Total Hacks 316 | . 19 . 57 1 50 . 4 8 26 . 1 . 1 28 2 17 3 11 1 19 1 1 15 1 1 4 7 26 . 12 Successful 185 | . 6 . 29 . 50 . 2 3 10 . 1 . 1 14 1 16 . 5 1 7 1 1 6 1 1 4 4 13 . 8 Failed 130 | . 12 . 28 1 . . 2 5 16 . . . . 14 1 1 3 6 . 12 . . 9 . . . 3 13 . 4 Catastrophic 28 | . 4 . 4 1 . . . 2 6 . . . . 3 . . 1 . . 2 . . . . . . . 5 . . Database Lockouts 1 | . 1 . . . . . . . . . . . . . . . . . . . . . . . . . . . . . Manual 72 | . 13 . 13 1 1 . 1 1 5 . . . . 10 . . . 1 . 8 . . 5 . . . . 11 . 2 Terminals 138 | . 16 . 34 1 . . 3 8 18 . . . 1 11 2 2 3 2 1 8 1 . 7 . . . 1 15 . 4 Fabricators 31 | . . . . . . . . . 6 . . . . 3 . 4 . . . 5 . . 2 . . . 2 4 . 5 Repair Stations 39 | . 3 . 9 . . . . . . . . . . 8 . 6 . 4 . 2 . . 2 . . . . 5 . . Recycling Units 9 | . . . 2 . . . . . 1 . . . . . . . . . . . . . . . . . 4 1 . 1 Scanalyzers 23 | . . . 12 . . . . . . . . . . 5 . 4 . 2 . . . . . . . . . . . . Garrison Access 18 | . . . . . . . 1 . 1 . . . . 1 . 1 . 3 . 4 . . 4 . . . . 1 . 2 Terminal Hacks 103 | . 5 . 12 . 50 . 1 3 3 . 1 . 1 6 1 2 . 1 1 1 1 1 2 1 1 4 1 3 . 1 Record 55 | . . . . . 49 . . . . . . . 1 . . . . . . . 1 . . . . 4 . . . . Part Schematic 1 | . . . . . . . . . . . . . . . . . . 1 . . . . . . . . . . . . Robot Schematic 2 | . . . . . . . . . 1 . . . . 1 . . . . . . . . . . . . . . . . Robot Analysis 9 | . 2 . 4 . . . . . . . . . . 3 . . . . . . . . . . . . . . . . Prototype ID Bank 6 | . 1 . 3 . . . . . 1 . . . . . . . . . . . . . . . . . . . . 1 Open Door 5 | . . . . . . . . . . . 1 . . . . . . . . . . 1 . 1 1 . 1 . . . Open DSF 3 | . . . . . . . . . . . . . . . . 1 . . . . . . 1 . . . . 1 . . Branch Access Points 3 | . 1 . 1 . . . . . . . . . . . . . . . . . . . . . . . . 1 . . Emergency Access Points 3 | . . . . . . . . 1 . . . . . 1 . . . . 1 . . . . . . . . . . . Terminal Index 3 | . . . 1 . . . . . . . . . . . . . . . . 1 . . 1 . . . . . . . Reprogram Traps 2 | . 1 . 1 . . . . . . . . . . . . . . . . . . . . . . . . . . . Recall Investigation 2 | . . . . . . . . . . . . . . 1 . 1 . . . . . . . . . . . . . . Recall Extermination 1 | . . . . . . . . . . . . . . . . . . . . . . . . . . . . 1 . . Zone Layout 4 | . . . 2 . . . 1 . 1 . . . . . . . . . . . . . . . . . . . . . Garrison Registry 2 | . . . . . . . . 1 . . . . . . 1 . . . . . . . . . . . . . . . Patrol Navigation 1 | . . . . . . . . 1 . . . . . . . . . . . . . . . . . . . . . . Derelict Proto ID Bank 1 | . . . . . 1 . . . . . . . . . . . . . . . . . . . . . . . . . Fabricator Hacks 18 | . . . . . . . . . 6 . . . . 1 . 4 . . . . . . . . . . 2 1 . 4 Network Status 3 | . . . . . . . . . 1 . . . . . . . . . . . . . . . . . . 1 . 1 Load Schematic 9 | . . . . . . . . . 3 . . . . 1 . 2 . . . . . . . . . . 1 . . 2 Build 6 | . . . . . . . . . 2 . . . . . . 2 . . . . . . . . . . 1 . . 1 Repair Station Hacks 21 | . 1 . 6 . . . . . . . . . . 4 . 5 . 1 . 1 . . 1 . . . . 2 . . Scan Component 15 | . . . 4 . . . . . . . . . . 3 . 3 . 1 . 1 . . 1 . . . . 2 . . Repair 5 | . . . 2 . . . . . . . . . . 1 . 2 . . . . . . . . . . . . . . Refit 1 | . 1 . . . . . . . . . . . . . . . . . . . . . . . . . . . . . Recycling Unit Hacks 5 | . . . 1 . . . . . 1 . . . . . . . . . . . . . . . . . 1 1 . 1 Retrieve Components 5 | . . . 1 . . . . . 1 . . . . . . . . . . . . . . . . . 1 1 . 1 Scanalyzer 17 | . . . 10 . . . . . . . . . . 2 . 4 . 1 . . . . . . . . . . . . Insert Component 10 | . . . 5 . . . . . . . . . . 2 . 2 . 1 . . . . . . . . . . . . Analyze 7 | . . . 5 . . . . . . . . . . . . 2 . . . . . . . . . . . . . . Garrison Access Hacks 10 | . . . . . . . 1 . . . . . . 1 . 1 . 2 . 2 . . 1 . . . . 1 . 1 Unlock Access 6 | . . . . . . . 1 . . . . . . 1 . 1 . 1 . 1 . . . . . . . 1 . . Seal Access 4 | . . . . . . . . . . . . . . . . . . 1 . 1 . . 1 . . . . . . 1 Unauthorized Hacks 11 | . . . . . . . . . . . . . . . . . . . . 3 . . 2 . . . . 5 . 1 Terminals 10 | . . . . . . . . . . . . . . . . . . . . 3 . . 2 . . . . 4 . 1 Botnet 10 | . . . . . . . . . . . . . . . . . . . . 3 . . 2 . . . . 4 . 1 Fabricators 1 | . . . . . . . . . . . . . . . . . . . . . . . . . . . . 1 . . Fabnet 1 | . . . . . . . . . . . . . . . . . . . . . . . . . . . . 1 . . Repair Stations . | . . . . . . . . . . . . . . . . . . . . . . . . . . . . . . . Recycling Units . | . . . . . . . . . . . . . . . . . . . . . . . . . . . . . . . Scanalyzers . | . . . . . . . . . . . . . . . . . . . . . . . . . . . . . . . Garrison Access . | . . . . . . . . . . . . . . . . . . . . . . . . . . . . . . . Data Cores Recovered 5 | . . . . . . . . . 1 . . . . . . . . . . . . . . . . . . 3 . 1 Used 4 | . . . . . . . . . 1 . . . . . . . . . . . . . . . . . . 2 . 1 Hacking Detections 82 | . 6 . 14 1 . . 1 3 11 . . . . 9 . 3 . 3 . 9 . . 6 . . . 2 10 . 4 Full Trace Events 24 | . 3 . 4 . . . . 1 3 . . . . 3 . 2 2 1 . 1 . . 1 . . . 1 1 . 1 Feedback Events 1 | . . . . . . . . . . . . . . . . . 1 . . . . . . . . . . . . . Corruption 1 | . . . . . . . . . . . . . . . . . 1 . . . . . . . . . . . . . Feedback Blocked . | . . . . . . . . . . . . . . . . . . . . . . . . . . . . . . . Robot Schematics Acquired 6 | . . . . . . . . . 1 . . 4 . 1 . . . . . . . . . . . . . . . . Robots Built 7 | . . . . . . . . . 2 . . . . . . 4 . . . . . . . . . . 1 . . . Authchips 3 | . . . . . . . . . 1 . . . . . . 2 . . . . . . . . . . . . . . Time 583 | . . . . . . . . . 134 . . . . . . 169 . . . . . . . . . . 58 . . 222 Total Robot Build Rating 41 | . . . . . . . . . 8 . . . . . . 30 . . . . . . . . . . 3 . . . Part Schematics Acquired 21 | . . . 5 . . . . . . . . 14 . . . 1 . 1 . . . . . . . . . . . . Parts Built 1 | . . . . . . . . . 1 . . . . . . . . . . . . . . . . . . . . . Authchips . | . . . . . . . . . . . . . . . . . . . . . . . . . . . . . . . Time 116 | . . . . . . . . . 116 . . . . . . . . . . . . . . . . . . . . . Total Part Build Rating 3 | . . . . . . . . . 3 . . . . . . . . . . . . . . . . . . . . . Parts Repaired 5 | . . . 2 . . . . . . . . . . 1 . 2 . . . . . . . . . . . . . . Time 187 | . . . 102 . . . . . . . . . . 19 . 66 . . . . . . . . . . . . . . Parts Recycled . | . . . . . . . . . . . . . . . . . . . . . . . . . . . . . . . Recycled Matter . | . . . . . . . . . . . . . . . . . . . . . . . . . . . . . . . Retrieved Matter . | . . . . . . . . . . . . . . . . . . . . . . . . . . . . . . . Retrieved Components 23 | . . . 9 . . . . . 3 . . . . . . . . . . . . . . . . . 10 . . 1 Parts Scanalyzed 8 | . . . 5 . . . . . . . . . . 1 . 1 . 1 . . . . . . . . . . . . Part Schematics Acquired 6 | . . . 5 . . . . . . . . . . . . 1 . . . . . . . . . . . . . . Parts Damaged 1 | . . . . . . . . . . . . . . . . . . 1 . . . . . . . . . . . . Bothacking | -11 -10 -10 -9 -9 -9 -8 -8 -8 -7 -7 -7 -7 -6 -6 -6 -6 -6 -6 -6 -6 -6 -6 -5 -5 -5 -5 -4 -4 -4 -4 ------------ Run | Yrd Mat Min Mat Min Exi Min Mat Gar Fac Low Low Zio Pro Fac Gar Fac Gar Fac Gar Fac Low Low Fac Upp Upp War Pro Fac Gar Fac Used RIF Installer . | . . . . . . . . . . . . . . . . . . . . . . . . . . . . . . . Robots Hacked . | . . . . . . . . . . . . . . . . . . . . . . . . . . . . . . . Non-combat . | . . . . . . . . . . . . . . . . . . . . . . . . . . . . . . . Combat . | . . . . . . . . . . . . . . . . . . . . . . . . . . . . . . . Robot Hacks Applied . | . . . . . . . . . . . . . . . . . . . . . . . . . . . . . . . Relay Couplers Released 94 | . . . . . . . . 23 . . . . . 3 25 . 13 . 23 1 . . 3 . . . . . 3 . Machine Destruction 90 | . . . . . . . . 23 . . . . . 3 21 . 13 . 23 1 . . 3 . . . . . 3 . Programmers 4 | . . . . . . . . . . . . . . . 4 . . . . . . . . . . . . . . . Fabnet Peak Effective % . | . . . . . . . . . . . . . . . . . . . . . . . . . . . . . . . Robots Rewired 48 | . . . . . . . . 3 . 2 . . . . 2 . 11 . 9 . 4 1 . . . 5 11 . . . Allies Hacked 3 | . . . . . . . . . . . . . . . . 1 . . 2 . . . . . . . . . . . Hacks Repelled . | . . . . . . . . . . . . . . . . . . . . . . . . . . . . . . . Allies | -11 -10 -10 -9 -9 -9 -8 -8 -8 -7 -7 -7 -7 -6 -6 -6 -6 -6 -6 -6 -6 -6 -6 -5 -5 -5 -5 -4 -4 -4 -4 -------- Run | Yrd Mat Min Mat Min Exi Min Mat Gar Fac Low Low Zio Pro Fac Gar Fac Gar Fac Gar Fac Low Low Fac Upp Upp War Pro Fac Gar Fac Total Allies 60 | . . 1 . . . . . 3 2 2 . . . . 4 4 11 . 11 . 4 1 . . . 5 12 . . . Largest Group 8 | . . 1 1 . . . . 3 2 4 4 4 4 4 6 8 5 5 6 . 4 5 4 . . 5 5 3 . . Highest-Rated Group 465 | . . 31 31 . . . . 45 64 128 128 128 128 128 265 465 154 154 286 . 118 148 117 . . 266 230 120 . . Highest-Rated Ally 119 | . . 31 31 . . . . 15 32 32 32 32 32 32 116 116 51 32 119 . 31 31 31 . . 68 47 47 . . Warlord Squad Rendezvous 11 | . . . . . . . . . . . . . . 4 . 1 . . . 4 . . 2 . . . . . . . Dakka 4 | . . . . . . . . . . . . . . 2 . . . . . . . . 2 . . . . . . . Muscle 1 | . . . . . . . . . . . . . . 1 . . . . . . . . . . . . . . . . Geek 1 | . . . . . . . . . . . . . . . . . . . . 1 . . . . . . . . . . Ranger 2 | . . . . . . . . . . . . . . . . . . . . 2 . . . . . . . . . . Chimera 2 | . . . . . . . . . . . . . . 1 . 1 . . . . . . . . . . . . . . Ghost 1 | . . . . . . . . . . . . . . . . . . . . 1 . . . . . . . . . . Total Orders 89 | . . . . . . . . . 16 4 2 . 7 10 6 15 8 2 6 2 . . . 1 . 6 . 4 . . STAY 32 | . . . . . . . . . 9 2 1 . 3 1 1 8 . . 1 . . . . . . 4 . 2 . . FOLLOW 27 | . . . . . . . . . 7 2 1 . 4 1 1 6 . . 1 . . . . . . 2 . 2 . . EXPLORE 5 | . . . . . . . . . . . . . . . . . 3 . . 1 . . . 1 . . . . . . RETURN 25 | . . . . . . . . . . . . . . 8 4 1 5 2 4 1 . . . . . . . . . . Ally Attacks 514 | . . . 12 . . . . 5 20 9 3 . 9 8 35 76 108 25 94 . . 23 9 . . 37 33 8 . . Total Damage 13495 | . . . 106 . . . . 47 419 294 126 . 273 170 1305 3205 1905 600 2411 . . 272 154 . . 1157 744 307 . . Kills 121 | . . . 3 . . . . 3 6 3 1 . 3 2 9 26 11 9 26 . . 4 1 . . 9 2 3 . . Allies Corrupted 1 | . . . . . . . . . . . . . . . . . . . 1 . . . . . . . . . . . Allies Melted 2 | . . . . . . . . . . . . . . . . . . . . . . . . . . 2 . . . . Intel | -11 -10 -10 -9 -9 -9 -8 -8 -8 -7 -7 -7 -7 -6 -6 -6 -6 -6 -6 -6 -6 -6 -6 -5 -5 -5 -5 -4 -4 -4 -4 ------- Run | Yrd Mat Min Mat Min Exi Min Mat Gar Fac Low Low Zio Pro Fac Gar Fac Gar Fac Gar Fac Low Low Fac Upp Upp War Pro Fac Gar Fac Robot Analysis Total 9 | . 2 . 4 . . . . . . . . . . 3 . . . . . . . . . . . . . . . . Derelict Logs Recovered 14 | . . 1 . 2 . . . . . 1 2 2 1 . . . . . . . 1 2 . 1 1 . . . . . Drone Launches 47 | . . . . . . . . . . . . . . 8 4 1 20 2 8 2 . . . 2 . . . . . . Drone Recoveries 27 | . . . . . . . . . . . . . . 8 4 1 5 2 5 2 . . . . . . . . . . Decoded 0b10 Intel 25 | . . . . . . . . . . . . . . . . . . . . . . . . . . . . 20 5 . Traps 13 | . . . . . . . . . . . . . . . . . . . . . . . . . . . . 9 4 . Emergency Access 11 | . . . . . . . . . . . . . . . . . . . . . . . . . . . . 10 1 . Garrisons 1 | . . . . . . . . . . . . . . . . . . . . . . . . . . . . 1 . . Exploration | -11 -10 -10 -9 -9 -9 -8 -8 -8 -7 -7 -7 -7 -6 -6 -6 -6 -6 -6 -6 -6 -6 -6 -5 -5 -5 -5 -4 -4 -4 -4 ------------- Run | Yrd Mat Min Mat Min Exi Min Mat Gar Fac Low Low Zio Pro Fac Gar Fac Gar Fac Gar Fac Low Low Fac Upp Upp War Pro Fac Gar Fac Turns Passed 21895 | 69 1107 415 1220 175 73 6 72 1130 878 708 407 572 456 852 905 829 1653 486 2114 1082 448 667 583 267 273 1209 870 1526 366 477 Spaces Moved 31317 | 42 922 619 1638 491 239 24 91 1325 1821 1573 1096 1239 877 1555 1348 1225 2200 1003 1622 1357 637 1055 738 498 445 1634 977 2197 383 446 Core 137 | 3 7 . . . . . . . . . . . . . . . . 1 126 . . . . . . . . . . . Treads . | . . . . . . . . . . . . . . . . . . . . . . . . . . . . . . . Legs 642 | . . . . . . . . . . . . . . . . . . . 642 . . . . . . . . . . . Wheels 709 | 39 670 . . . . . . . . . . . . . . . . . . . . . . . . . . . . . Hover 11657 | . 245 210 . . . . . . . . . . . . . . . . 835 1357 637 1055 738 498 445 1634 977 2197 383 446 Flight 18172 | . . 409 1638 491 239 24 91 1325 1821 1573 1096 1239 877 1555 1348 1225 2200 1002 19 . . . . . . . . . . . Fastest Speed 24 | 50 76 37 27 27 27 27 27 27 24 24 29 28 32 32 33 33 27 27 48 48 48 48 43 43 43 43 43 33 48 60 Average Speed 40 | 77 83 51 29 27 27 27 27 28 25 25 29 29 32 32 33 35 31 30 93 48 48 48 47 43 43 43 48 41 54 67 Slowest Speed 273 | 80 250 156 111 27 27 27 27 100 28 100 29 32 36 34 34 122 273 115 190 48 48 48 48 43 43 103 106 106 70 70 Overloaded Moves . | . . . . . . . . . . . . . . . . . . . . . . . . . . . . . . . Propulsion Burnouts . | . . . . . . . . . . . . . . . . . . . . . . . . . . . . . . . Robots Hopped 101 | . . 4 20 7 . 2 . . 22 3 . . . 13 8 15 1 5 . . . . 1 . . . . . . . Cave-ins Triggered . | . . . . . . . . . . . . . . . . . . . . . . . . . . . . . . . Exploration Rate (%) 60 | 3 97 94 96 86 61 13 11 96 29 81 97 86 71 29 81 24 80 21 99 36 79 98 23 69 69 86 64 42 52 14 Regions Visited 30 Branch Regions 14 Pre-discovered Areas 6 | . . . . 1 1 . . . . 2 . 1 . . . . . . . . . 1 . . . . . . . . Known Exits Taken 14 | . 1 . 1 . . . 1 . 1 . . . 1 1 . 1 . 1 . 1 1 1 1 . . . 1 1 . . Unknown Exits Taken 11 | 1 . 1 . 1 1 1 . . . 1 1 1 . . . . . . . . . . . 1 1 1 . . . . Scrap Searched 41 | . . 2 . 1 . . . . . 11 5 3 3 . . . . . . . 3 4 . 3 1 . 5 . . . Spaces Dug 166 | . . . . . . . . . . 5 23 . . . . . . . . . 12 . 6 3 . . . 111 . 6 Terrain Destroyed 2541 | . . 23 89 11 . . . 78 . 222 118 . 149 150 269 160 2 . 78 183 56 60 86 16 22 149 19 210 239 152 Melee . | . . . . . . . . . . . . . . . . . . . . . . . . . . . . . . . Projectile 212 | . . . . . . . . . . . 1 . . 1 1 1 2 . 3 20 1 11 23 16 22 29 11 44 7 19 AOE 2329 | . . 23 89 11 . . . 78 . 222 117 . 149 149 268 159 . . 75 163 55 49 63 . . 120 8 166 232 133 Terrain Rammed . | . . . . . . . . . . . . . . . . . . . . . . . . . . . . . . . Walls Destroyed . | . . . . . . . . . . . . . . . . . . . . . . . . . . . . . . . Machines Disabled . | . . . . . . . . . . . . . . . . . . . . . . . . . . . . . . . Actions | -11 -10 -10 -9 -9 -9 -8 -8 -8 -7 -7 -7 -7 -6 -6 -6 -6 -6 -6 -6 -6 -6 -6 -5 -5 -5 -5 -4 -4 -4 -4 --------- Run | Yrd Mat Min Mat Min Exi Min Mat Gar Fac Low Low Zio Pro Fac Gar Fac Gar Fac Gar Fac Low Low Fac Upp Upp War Pro Fac Gar Fac Total 38127 | 60 1127 701 2081 516 250 21 132 1856 2071 1850 1160 1439 1020 1856 1746 1538 3000 1139 2134 1620 738 1189 873 529 492 2014 1245 2649 492 589 Wait 3097 | . 12 53 94 22 . . 28 112 156 234 32 151 99 259 239 244 321 85 119 80 43 65 44 . 29 146 45 232 62 91 Move 31097 | 41 921 610 1598 476 238 20 91 1324 1776 1566 1095 1238 876 1528 1336 1199 2197 992 1621 1356 636 1054 735 497 444 1633 976 2196 381 446 Hop 90 | . . 4 19 7 . 1 . . 22 3 . . . 13 3 11 1 5 . . . . 1 . . . . . . . Pick Up 184 | 4 26 5 32 2 1 . 1 9 1 1 . 6 . 3 3 2 10 1 7 5 . 9 5 5 . 15 6 21 1 3 Fast Attach 225 | 7 15 2 11 . . . 4 5 11 3 . 14 1 6 5 6 30 7 45 7 . 1 3 2 . 13 4 11 1 11 Attach 78 | . 3 1 9 . 2 . . 2 1 . . . . 4 4 5 10 . 4 2 . . 4 1 . 8 4 6 5 3 Detach 70 | . 7 2 6 . 2 . 1 2 1 1 . 1 . 1 3 4 15 2 7 3 . . . 2 . 5 2 1 1 1 Swap 299 | . 9 6 58 1 1 . . 20 13 3 . 2 3 15 5 1 30 3 20 21 2 7 19 3 . 13 10 27 6 1 Drop 395 | . 39 7 63 2 6 . 4 13 17 6 . 20 2 9 7 4 43 5 48 14 . 6 8 6 . 26 9 28 . 3 Fire 1569 | 8 95 11 191 6 . . 3 123 73 20 21 1 28 18 45 62 129 39 64 110 38 14 53 13 19 107 87 127 34 30 Melee 23 | . . . . . . . . 17 . . . 6 . . . . . . . . . . . . . . . . . . Ram 2 | . . . . . . . . . . . . . . . . . . . . . . . 1 . . . . . 1 . Kick . | . . . . . . . . . . . . . . . . . . . . . . . . . . . . . . . Crush . | . . . . . . . . . . . . . . . . . . . . . . . . . . . . . . . Escape Stasis 485 | . . . . . . . . 203 . . . . . . 88 . 114 . 58 22 . . . . . . . . . . Rewire 477 | . . . . . . . . 26 . 13 . . . . 8 . 100 . 141 . 19 27 . . . 48 95 . . . Trap 36 | . . . . . . . . . . . 12 . 11 . . . . . . . . 6 . . . . 7 . . . Miscellaneous . | . . . . . . . . . . . . . . . . . . . . . . . . . . . . . . . Route ------- -11/Scrapyard -10/Materials (discovered 5 exits: *Mat x3 / *Min x2) -10/Mines (discovered 2 exits: *Mat x2) -9/Materials (discovered 5 exits: *Mat x3 / *Min / *Sto) -9/Mines (discovered 2 exits: *Mat / *Exi) -9/Exiles -8/Mines -8/Materials (discovered 2 exits: Fac / Gar) -8/Garrison (discovered 3 exits: *Fac x3) -7/Factory (discovered 2 exits: *Fac / *Low) -7/Lower Caves -7/Lower Caves (discovered 2 exits: *Fac / [*Zio]) -7/Zion -6/Proximity Caves -6/Factory (discovered 7 exits: *Fac x4 / *Low x2 / Gar) -6/Garrison (discovered 3 exits: *Fac x3) -6/Factory -6/Garrison (discovered 4 exits: *Fac x4) -6/Factory (discovered 3 exits: *Low x2 / Gar) -6/Garrison (discovered 3 exits: *Fac x3) -6/Factory (discovered 3 exits: *Low x2 / Gar) -6/Lower Caves -6/Lower Caves (discovered 2 exits: *Fac / [*Dat]) -5/Factory (discovered 2 exits: Fac / *Upp) -5/Upper Caves -5/Upper Caves -5/Warlord -4/Proximity Caves -4/Factory (discovered 7 exits: [*Res] / Upp x2 / Ext x2 / *Arm / Gar) -4/Garrison (discovered 2 exits: *Fac x2) -4/Factory History --------- Turn | Location | Event 39 | -11/Scrapyard | Discovered new exit (range 15) 70 | -11/Scrapyard | Entered Materials 153 | -10/Materials | Discovered new exit (range 4) 184 | -10/Materials | Discovered new exit (range 15) 553 | -10/Materials | Build established: Scavenger-Mutant 654 | -10/Materials | Identified exit to Mines 661 | -10/Materials | Discovered new exit (range 11) 770 | -10/Materials | Discovered new exit (range 10) 870 | -10/Materials | Central database locked down 940 | -10/Materials | Core integrity fell below 50% 1038 | -10/Materials | Discovered new exit (range 17) 1177 | -10/Materials | Entered Mines 1238 | -10/Mines | Received a Rocket Launcher from a helpful Derelict 1263 | -10/Mines | Build established: Mutant 1327 | -10/Mines | Found a damaged Exp. Sensor Array with a note attached 1359 | -10/Mines | Found Prototype Device 1359 | -10/Mines | Identified Exp. Sensor Array 1397 | -10/Mines | Discovered new exit (range 5) 1404 | -10/Mines | Received a Mining Laser from a helpful Derelict 1415 | -10/Mines | Discovered new exit (range 3) 1423 | -10/Mines | Learned Materials stockpile data 1592 | -10/Mines | Entered Materials 1592 | -9/Materials | Accompanied by 1 ally 1592 | -9/Materials | Evolved 2 slots: Propulsion x2 1688 | -9/Materials | Discovered new exit (range 15) 1829 | -9/Materials | Discovered new exit (range 15) 2310 | -9/Materials | Core integrity fell below 50% 2372 | -9/Materials | Identified exit to Mines 2372 | -9/Materials | Identified exit to Storage 2378 | -9/Materials | Discovered new exit (range 16) 2579 | -9/Materials | Discovered new exit (range 16) 2593 | -9/Materials | Destroyed 9 combat bots 2618 | -9/Materials | Build established: Sprinter 2667 | -9/Materials | Repaired Imp. Flight Unit 2721 | -9/Materials | Repaired Imp. Flight Unit 2792 | -9/Materials | First assault squad dispatched 2812 | -9/Materials | Entered Mines 2818 | -9/Mines | Assembled infested the area 2838 | -9/Mines | Learned location of 1 exit from Materials 2879 | -9/Mines | Discovered new exit (range 10) 2921 | -9/Mines | A weapon hastily lodged in a ceiling crevice suddenly fell to the ground 2984 | -9/Mines | Learned location of Zion (-7) 2986 | -9/Mines | Deemed a non-threat by the Exiles lab entrance 2986 | -9/Mines | Discovered new exit (range 5) 2987 | -9/Mines | Entered Exiles 2996 | -9/Exiles | Met 8R-AWN 3001 | -9/Exiles | Met EX-HEX 3008 | -9/Exiles | Met EX-BIN 3012 | -9/Exiles | Aligned with FarCom system 3012 | -9/Exiles | Given EX-Vault access code 3023 | -9/Exiles | Opened EX-Vault 3030 | -9/Exiles | Found Army-in-a-Box 3037 | -9/Exiles | Warned to stay clear of 0b10 Research branches 3044 | -9/Exiles | Met EX-DEC 3058 | -9/Exiles | Discovered new exit (range 12) 3060 | -9/Exiles | Left Exiles lab with Army-in-a-Box 3060 | -9/Exiles | Entered Mines 3066 | -8/Mines | Discovered new exit (range 2) 3066 | -8/Mines | Entered Materials 3066 | -8/Materials | Evolved 2 slots: Utility x2 3067 | -8/Materials | Identified exit to Factory 3138 | -8/Materials | Identified exit to Garrison 3138 | -8/Materials | Entered Garrison 3190 | -8/Garrison | Triggered checkpoint 3222 | -8/Garrison | Triggered checkpoint 3338 | -8/Garrison | Triggered checkpoint 3532 | -8/Garrison | Discovered exit to Factory (range 14) 3574 | -8/Garrison | Garrison Relay disabled 3590 | -8/Garrison | Garrison Relay disabled 3630 | -8/Garrison | Phase Generator disabled 3646 | -8/Garrison | Discovered exit to Factory (range 64) 3646 | -8/Garrison | Discovered exit to Factory (range 50) 3646 | -8/Garrison | Discovered exit to Factory (range 89) 3658 | -8/Garrison | Garrison Relay disabled 3661 | -8/Garrison | Lost 3 parts (1p2n) 3666 | -8/Garrison | Triggered checkpoint 3809 | -8/Garrison | Garrison Relay disabled 3838 | -8/Garrison | Triggered checkpoint 3890 | -8/Garrison | Triggered checkpoint 3947 | -8/Garrison | Garrison Relay disabled 3970 | -8/Garrison | Triggered checkpoint 4060 | -8/Garrison | Build established: Scavenger-Sprinter 4077 | -8/Garrison | Garrison Relay disabled 4268 | -8/Garrison | Entered Factory 4268 | -7/Factory | Accompanied by 2 allies 4268 | -7/Factory | Evolved 2 slots: Propulsion x1, Utility x1 4374 | -7/Factory | Discovered new exit (range 15) 4668 | -7/Factory | First assault squad dispatched 4672 | -7/Factory | Garrison activated, responded to threat 4855 | -7/Factory | Identified exit to Lower Caves 4891 | -7/Factory | Fabricated Imp. VTOL Module? 4996 | -7/Factory | Fabricated Y-54 Guardian? 5085 | -7/Factory | Discovered new exit (range 11) 5146 | -7/Factory | Entered Lower Caves 5146 | -7/Lower Caves | Accompanied by 2 allies 5152 | -7/Lower Caves | Met a Warlord Commander 5153 | -7/Lower Caves | Learned location of Warlord (-5) 5154 | -7/Lower Caves | Warlord Commander delivered Encrypted Comm Array 5157 | -7/Lower Caves | Found Encrypted Comm Array 5208 | -7/Lower Caves | Encountered a Warlord checkpoint 5213 | -7/Lower Caves | Spotted B-75 Beast 5329 | -7/Lower Caves | Attracted the attention of an 0b10 checkpoint 5434 | -7/Lower Caves | Attracted the attention of an 0b10 outpost 5752 | -7/Lower Caves | Discovered new exit (range 5) 5854 | -7/Lower Caves | Entered another Lower Caves area 5854 | -7/Lower Caves | Accompanied by 4 allies 5857 | -7/Lower Caves | Discovered new exit (range 9) 6003 | -7/Lower Caves | Build established: Derelict-Sprinter 6019 | -7/Lower Caves | Attracted the attention of an 0b10 checkpoint 6101 | -7/Lower Caves | Discovered new exit (range 12) 6139 | -7/Lower Caves | Learned Factory non-interactive machine intel 6208 | -7/Lower Caves | Encountered a Warlord checkpoint 6232 | -7/Lower Caves | Learned location of 1 exit from Lower Caves 6261 | -7/Lower Caves | Entered Zion 6261 | -7/Zion | Accompanied by 4 allies 6278 | -7/Zion | Discovered new exit (range 16) 6357 | -7/Zion | Given the Hacking Drone Bay 6358 | -7/Zion | Found Prototype Device 6358 | -7/Zion | Identified Hacking Drone Bay 6375 | -7/Zion | Learned 4 Factory zone layouts 6522 | -7/Zion | Rebuked by Imprinter 6561 | -7/Zion | Found Prototype Device 6561 | -7/Zion | Identified Mobile Refinery Mk. CCLXVII 6578 | -7/Zion | Loaded intel: 4 derelict terminal locations 6662 | -7/Zion | Found GAL Module 6773 | -7/Zion | Found Prototype Special Weapon 6773 | -7/Zion | Identified RU-N14's Throwing Claymores 6833 | -7/Zion | Entered Proximity Caves 6833 | -6/Proximity Caves | Accompanied by 4 allies 6887 | -6/Proximity Caves | Spotted B-75 Beast 7015 | -6/Proximity Caves | Identified exit to Factory 7289 | -6/Proximity Caves | Entered Factory 7289 | -6/Factory | Accompanied by 4 allies 7289 | -6/Factory | Evolved 2 slots: Utility x2 7290 | -6/Factory | Identified exit to Factory 7291 | -6/Factory | Loaded intel: 206 non-interactive machine locations 7312 | -6/Factory | Identified exit to DSF 7338 | -6/Factory | Joined by Warlord Dakka squad 7360 | -6/Factory | Discovered new exit (range 16) 7407 | -6/Factory | Repaired Imp. Propulsion Shielding 7421 | -6/Factory | Identified exit to Lower Caves 7457 | -6/Factory | Joined by Warlord Chimera squad 7783 | -6/Factory | Joined by Warlord Muscle squad 7853 | -6/Factory | Lost 4 allies 7923 | -6/Factory | Joined by Warlord Dakka squad 8051 | -6/Factory | Identified exit to Garrison 8104 | -6/Factory | Build established: Derelict-Mutant 8141 | -6/Factory | Entered Garrison 8141 | -6/Garrison | Warlord forces raided the area 8141 | -6/Garrison | Accompanied by 4 allies 8182 | -6/Garrison | Triggered checkpoint 8184 | -6/Garrison | Spotted B-75 Beast 8217 | -6/Garrison | Warlord forces retreated 8220 | -6/Garrison | Triggered checkpoint 8222 | -6/Garrison | Lost 7 allies 8230 | -6/Garrison | Triggered checkpoint 8300 | -6/Garrison | Triggered checkpoint 8328 | -6/Garrison | Garrison Relay disabled 8371 | -6/Garrison | Discovered new exit (range 11) 8434 | -6/Garrison | Discovered new exit (range 14) 8439 | -6/Garrison | Discovered new exit (range 7) 8439 | -6/Garrison | Discovered new exit (range 90) 8439 | -6/Garrison | Discovered new exit (range 63) 8528 | -6/Garrison | Triggered checkpoint 8578 | -6/Garrison | Spotted B-75 Beast 8593 | -6/Garrison | Triggered checkpoint 8672 | -6/Garrison | Rescued a captive Derelict 8672 | -6/Garrison | Rescued a captive Derelict 8702 | -6/Garrison | Spotted B-75 Beast 8811 | -6/Garrison | Rewired B-86 Titan 8820 | -6/Garrison | Rewired B-75 Beast 8846 | -6/Garrison | Allies destroyed B-75 Beast 8880 | -6/Garrison | Garrison Relay disabled 8886 | -6/Garrison | Garrison Relay disabled 9046 | -6/Garrison | Entered Factory 9046 | -6/Factory | Accompanied by 4 allies 9093 | -6/Factory | Repaired Xenon Bombardment Thruster 9218 | -6/Factory | Fabricated G-73 Enforcer? 9284 | -6/Factory | Fabricated O-24 Administrator? 9323 | -6/Factory | Joined by Warlord Chimera squad 9466 | -6/Factory | Repaired Mak. Light Armor Plating 9725 | -6/Factory | Build established: Commander-Sprinter 9746 | -6/Factory | First assault squad dispatched 9762 | -6/Factory | Garrison activated, responded to threat 9820 | -6/Factory | Lost 4 allies 9851 | -6/Factory | High security lockdown imminent 9855 | -6/Factory | Allies destroyed *B3-LL4 9875 | -6/Factory | Identified exit to Garrison 9875 | -6/Factory | Entered Garrison 9886 | -6/Garrison | Lost 3 allies 9896 | -6/Garrison | Triggered checkpoint 10026 | -6/Garrison | Garrison Relay disabled 10034 | -6/Garrison | Lost 3 allies 10168 | -6/Garrison | Triggered checkpoint 10250 | -6/Garrison | Lost 15 allies 10444 | -6/Garrison | Discovered new exit (range 9) 10474 | -6/Garrison | Discovered new exit (range 10) 10556 | -6/Garrison | Triggered checkpoint 10577 | -6/Garrison | Discovered new exit (range 10) 10618 | -6/Garrison | Triggered checkpoint 10804 | -6/Garrison | Discovered new exit (range 5) 10854 | -6/Garrison | Triggered checkpoint 10898 | -6/Garrison | Garrison Relay disabled 10922 | -6/Garrison | Triggered checkpoint 10966 | -6/Garrison | Lost 3 allies 11002 | -6/Garrison | Triggered checkpoint 11029 | -6/Garrison | Garrison Relay disabled 11124 | -6/Garrison | Triggered checkpoint 11148 | -6/Garrison | Garrison Relay disabled 11528 | -6/Garrison | Entered Factory 11528 | -6/Factory | Accompanied by 5 allies 11675 | -6/Factory | Build established: Scavenger-Sprinter 11884 | -6/Factory | Identified exit to Garrison 11888 | -6/Factory | High security lockdown imminent 11968 | -6/Factory | High security lockdown engaged 12014 | -6/Factory | Entered Garrison 12044 | -6/Garrison | Lost 4 parts (1p3n) 12054 | -6/Garrison | Spotted B-75 Beast 12060 | -6/Garrison | Triggered checkpoint 12125 | -6/Garrison | Allies destroyed B-75 Beast 12154 | -6/Garrison | Lost 3 allies 12158 | -6/Garrison | Phase Generator disabled 12196 | -6/Garrison | Triggered checkpoint 12455 | -6/Garrison | Garrison Relay disabled 12492 | -6/Garrison | Rewired Executioner 12505 | -6/Garrison | Rewired Executioner 12555 | -6/Garrison | Build established: Scavenger-Mutant 12581 | -6/Garrison | Triggered checkpoint 12780 | -6/Garrison | Discovered new exit (range 14) 12836 | -6/Garrison | Triggered checkpoint 12847 | -6/Garrison | Garrison Relay disabled 12897 | -6/Garrison | Lost 4 allies 13076 | -6/Garrison | Triggered checkpoint 13126 | -6/Garrison | Triggered checkpoint 13147 | -6/Garrison | Triggered checkpoint 13217 | -6/Garrison | Destroyed *CU-T13 13264 | -6/Garrison | Found Prototype Processor 13264 | -6/Garrison | Identified Exp. Core Analyzer 13281 | -6/Garrison | Found embedded Infiltrators 13285 | -6/Garrison | Garrison Relay disabled 13348 | -6/Garrison | Discovered new exit (range 12) 13405 | -6/Garrison | Triggered checkpoint 13406 | -6/Garrison | Core integrity fell below 50% 13442 | -6/Garrison | Triggered checkpoint 13467 | -6/Garrison | Garrison Relay disabled 13773 | -6/Garrison | Garrison Relay disabled 13776 | -6/Garrison | Discovered new exit (range 11) 13778 | -6/Garrison | Triggered checkpoint 13848 | -6/Garrison | Lost 3 allies 13926 | -6/Garrison | Lost 4 parts (3n1u) 14065 | -6/Garrison | Garrison Relay disabled 14128 | -6/Garrison | Entered Factory 14176 | -6/Factory | Garrison activated, responded to threat 14215 | -6/Factory | Joined by Warlord Geek squad 14233 | -6/Factory | Discovered exit to Lower Caves (range 6) 14285 | -6/Factory | Joined by Warlord Ghost squad 14459 | -6/Factory | Lost 3 allies 14478 | -6/Factory | First assault squad dispatched 14623 | -6/Factory | Joined by Warlord Ranger squad 14625 | -6/Factory | Joined by Warlord Ranger squad 14829 | -6/Factory | Identified exit to Garrison 14958 | -6/Factory | Garrison activated, responded to threat 15045 | -6/Factory | Destroyed 7 combat bots 15166 | -6/Factory | Discovered exit to Lower Caves (range 15) 15198 | -6/Factory | Cargo convoy interrupted 15203 | -6/Factory | Core integrity fell below 20% 15207 | -6/Factory | Destroyed 7 combat bots 15210 | -6/Factory | Entered Lower Caves 15211 | -6/Lower Caves | Identified exit to Lower Caves 15234 | -6/Lower Caves | Learned Factory emergency access door positions 15310 | -6/Lower Caves | Encountered a Warlord checkpoint 15371 | -6/Lower Caves | Spotted B-75 Beast 15658 | -6/Lower Caves | Entered another Lower Caves area 15658 | -6/Lower Caves | Accompanied by 4 allies 15658 | -6/Lower Caves | Discovered exit to Factory (range 14) 15714 | -6/Lower Caves | Encountered a Warlord checkpoint 15893 | -6/Lower Caves | Attracted the attention of an 0b10 outpost 15999 | -6/Lower Caves | Discovered new exit (range 21) 16025 | -6/Lower Caves | Ambushed by research squad 16309 | -6/Lower Caves | Learned location of 1 exit from Factory 16325 | -6/Lower Caves | Entered Factory 16325 | -5/Factory | Accompanied by 4 allies 16325 | -5/Factory | Evolved 2 slots: Utility x2 16326 | -5/Factory | Identified exit to Upper Caves 16327 | -5/Factory | Identified exit to Factory 16515 | -5/Factory | Spotted B-75 Beast 16532 | -5/Factory | Destroyed B-75 Beast 16625 | -5/Factory | First assault squad dispatched 16636 | -5/Factory | Joined by Warlord Dakka squad 16726 | -5/Factory | Lost 3 allies 16778 | -5/Factory | Garrison activated, responded to threat 16878 | -5/Factory | Joined by Warlord Dakka squad 16908 | -5/Factory | Entered Upper Caves 16917 | -5/Upper Caves | Lost 3 allies 16960 | -5/Upper Caves | Learned Factory terminal intel 16969 | -5/Upper Caves | Spotted B-75 Beast 17121 | -5/Upper Caves | Discovered new exit (range 8) 17175 | -5/Upper Caves | Entered another Upper Caves area 17188 | -5/Upper Caves | Attacked by a delusional Derelict stockpiling parts 17444 | -5/Upper Caves | Encountered a Warlord checkpoint 17447 | -5/Upper Caves | Discovered new exit (range 5) 17448 | -5/Upper Caves | Entered Warlord 17463 | -5/Warlord | System corruption cleaned by Quarantine Array 17686 | -5/Warlord | Found Prototype Special Weapon 17686 | -5/Warlord | Identified RU-N14's Throwing Claymores v3 17689 | -5/Warlord | Found RU-N14's Throwing Claymores v3 17790 | -5/Warlord | Warlord's base attacked by MAIN.C 17859 | -5/Warlord | Met Warlord 17978 | -5/Warlord | Lost 5 allies 18000 | -5/Warlord | Warlord forces counterattacked 18038 | -5/Warlord | Spotted B-86 Titan 18072 | -5/Warlord | Lost 5 allies 18104 | -5/Warlord | Found RU-N14's Throwing Claymores v3 18105 | -5/Warlord | Found RU-N14's Throwing Claymores v3 18107 | -5/Warlord | Found RU-N14's Throwing Claymores v3 18109 | -5/Warlord | Found RU-N14's Throwing Claymores v3 18211 | -5/Warlord | Spotted Executioner 18218 | -5/Warlord | Destroyed Executioner 18241 | -5/Warlord | Spotted Executioner 18242 | -5/Warlord | Destroyed Executioner 18301 | -5/Warlord | Lost 4 allies 18302 | -5/Warlord | Spotted Striker 18339 | -5/Warlord | Spotted Striker 18360 | -5/Warlord | Destroyed Striker 18392 | -5/Warlord | Spotted Striker 18448 | -5/Warlord | Spotted Executioner 18453 | -5/Warlord | Spotted Executioner 18461 | -5/Warlord | Destroyed Executioner 18465 | -5/Warlord | Warlord base infiltrated, sounded retreat 18465 | -5/Warlord | Destroyed Executioner 18494 | -5/Warlord | Found Prototype Ballistic Cannon 18494 | -5/Warlord | Identified Hvy. Autocannon 18495 | -5/Warlord | Lost 5 allies 18508 | -5/Warlord | Destroyed 8 combat bots 18533 | -5/Warlord | Discovered new exit (range 12) 18567 | -5/Warlord | Found Corrupted Exp. Core Analyzer 18594 | -5/Warlord | Spotted B-75 Beast 18594 | -5/Warlord | Spotted B-86 Titan 18594 | -5/Warlord | Spotted Striker 18643 | -5/Warlord | Lost 5 allies 18657 | -5/Warlord | Entered Proximity Caves 18659 | -4/Proximity Caves | Spotter reported a threat 18660 | -4/Proximity Caves | Spotter reported a threat 18837 | -4/Proximity Caves | Snuck into a huge 0b10 base via the rear entrance 18986 | -4/Proximity Caves | Discovered exit to Factory (range 5) 18994 | -4/Proximity Caves | Lost 5 allies 19206 | -4/Proximity Caves | Lost 4 parts (3n1w) 19341 | -4/Proximity Caves | Fabricated O-24 Administrator? 19351 | -4/Proximity Caves | Lost 3 allies 19392 | -4/Proximity Caves | Spotted B-86 Titan 19527 | -4/Proximity Caves | Entered Factory 19527 | -4/Factory | Accompanied by 3 allies 19527 | -4/Factory | Evolved 2 slots: Utility x2 19528 | -4/Factory | Identified exit to Armory 19529 | -4/Factory | Loaded intel: 28 terminal locations 20093 | -4/Factory | P-70 Sage assimilated allied Veteran 7b 20095 | -4/Factory | Build established: Scavenger-Scout 20215 | -4/Factory | Identified exit to Garrison 20323 | -4/Factory | Spotted B-86 Titan 20585 | -4/Factory | Discovered new exit (range 16) 20594 | -4/Factory | Identified exit to Upper Caves 20594 | -4/Factory | Identified exit to Extension 20811 | -4/Factory | First assault squad dispatched 21053 | -4/Factory | Entered Garrison 21118 | -4/Garrison | Phase Generator disabled 21131 | -4/Garrison | Garrison Relay disabled 21196 | -4/Garrison | Spotted B-86 Titan 21282 | -4/Garrison | Destroyed B-86 Titan 21312 | -4/Garrison | Triggered checkpoint 21314 | -4/Garrison | Triggered checkpoint 21346 | -4/Garrison | Destroyed 10 combat bots 21349 | -4/Garrison | Core integrity fell below 50% 21361 | -4/Garrison | Discovered new exit (range 15) 21371 | -4/Garrison | Attempted to access garrison exit controls, blocked by remote lockdown 21379 | -4/Garrison | Core integrity fell below 20% 21415 | -4/Garrison | Discovered new exit (range 8) 21415 | -4/Garrison | Spotted B-86 Titan 21416 | -4/Garrison | Lost 15 parts (2p3n8u2w) 21419 | -4/Garrison | Entered Factory 21595 | -4/Factory | Build established: Scavenger-Mutant 21739 | -4/Factory | Spotted B-86 Titan 21776 | -4/Factory | Lost 3 parts (1p2u) 21896 | -4/Factory | Destroyed by G-67 Veteran with Field Laser Last Messages --------------- 21725_ Acquired Gyrokinetic Inverter. 21741_ Terminal disabled. 21745_ Terrain Scanner destroyed. 21745_ Structural Scanner destroyed. 21745_ Lgt. Ion Engine destroyed. 21745_ Slug penetrates Wall. 21746_ B-86 Titan activates siege mode. 21746_ Acquired 4 matter. 21749_ System corrupted: Energy discharge (-26). 21749_ Acquired 5 matter. 21755_ Acquired 1 matter. 21810_ K-01 Serf collects debris. 21833_ System corrupted: Matter fused (-10). 21839_ U-05 Engineer builds a Wall. 21862_ ALERT: Cargo convoy en route, clear transfer corridor. 21862_ U-05 Engineer builds a Wall. 21885_ Acquired Hacking Suite. 21895_ Nuclear Reactor explodes. 21895_ U-05 Engineer destroyed. 21896_ Lgt. Ion Engine destroyed. Map ----- +----------------------------------------------------+ | ????????????" ! """"" # ##### ########### " | | ????????????" """"" + + # T | | ????????????" """ #%#####+#### # "" | | ??????### # ## ## """ / "" | | ??????#################u## T ## """ # | | ??????## # """" ## ## """ # | | ??????## # "F " ## ! ## # ### | | ??????## + ## ######### ### | | ??????## # ## ######### ##? | | ??????## # """ ## """##?????## ##? | | ??????## # """ %! ## """######### ##? | | ??????######### """ !! ## """# ##+### | | ??????######### """ !g ## # ## | | ?????????????## ## # ## | | ???????????#### gg ## # "# | | ???????????# ######### ## | | ??????????## =!g + ## " | | ??????????# # ## " | | ??????????# # ! ## " | | ??????????# g # ## | | ??????????# # ## | | ???????????# ] ] # ## | | ???????????# ]] # ## | | ???????????# ] # ## | | ????????????### u #####+######+########## | | ?????############## @uuuu u u u | | ?????# # | | ?????# # | | ?????# # | | ?????# # | | ?????# # ##################### | | ?????# # #"### ############ | | ?????# # # ###??# | | ?????# # # ###??# | | ?????# # # "##??# | | ?????? + + "##??# | | ???????? # # ###??# | | ?????????? # # ]##???# | | ??????????##+###### #"##+############???# | | ??????????## #%############ | | ??????????## ##"########### | | ??????????## = |% % | | ??????????## ############## | | ??????????## ############## | | ??????????## ###+###### ##???????????? | | ?????????### # ## ##??????????# | | ????????## #? ???## ##???????????? | | ????????## # ??## ##???????????? | | ????????## # ??## ##???????????? | | ????????## # ?## ##?????#?????? | +----------------------------------------------------+ Best States ------------- Heat Dissipation 81 Energy Generation 29 Energy Capacity 350 Matter Stores 350 Matter Capacity 550 Sight Range 23 Robot Scan Range 20 Terrain Scan Range 16 Terrain Scan Density 10 Jamming Range 16 Power Amplification 20 Additional Mass Support 9 Armor Coverage 375 Resistance: KI 20 Core Shielding 20 Propulsion Shielding 90 Utility Shielding 33 Weapon Shielding 66 Weapon Cycling 20 Phase Shifting 15 Evasion (%) 73 Targeting Accuracy 16 Melee Accuracy 6 Target Analysis 8 Core Analysis 12 Armor Integrity Analysis 40 Recoil Reduction 6 Kinecelleration 40 Offensive Hacking 30 Defensive Hacking 10 Authchip Count 3 Item Schematics ----------------- Imp. VTOL Module | -9/Materials | Scanalyzed Nuclear Core | -9/Materials | Scanalyzed Imp. Assault Rifle | -9/Materials | Scanalyzed Exp. Sensor Array | -9/Materials | Scanalyzed Core Shielding | -9/Materials | Scanalyzed Greatsword | -7/Zion | Archive Coil Gun | -7/Zion | Archive Imp. Titanium Leg | -7/Zion | Archive Imp. Medium Treads | -7/Zion | Archive Gauss Cannon | -7/Zion | Archive Hvy. Machine Gun | -7/Zion | Archive Hvy. Riot Gun | -7/Zion | Archive Imp. Transmission Jammer | -7/Zion | Archive KE Penetrator | -7/Zion | Archive Mak. Laser | -7/Zion | Archive Adv. Heat Sink | -7/Zion | Archive Imp. Carbon-fiber Leg | -7/Zion | Archive 0b10 Decoder Chip [Generic] | -7/Zion | Archive Mak. Light Armor Plating | -7/Zion | Archive Mak. Power Source | -6/Factory | Scanalyzed Nuclear Pulse Array | -6/Factory | Hacked Robot Schematics ------------------ Y-54 Guardian | -7/Factory | Hacked W-25 Informer | -7/Zion | Archive G-47 Trooper | -7/Zion | Archive L-41 Fighter | -7/Zion | Archive G-73 Enforcer | -7/Zion | Archive O-24 Administrator | -6/Factory | Hacked Fabricated ------------ Imp. VTOL Module | x1 | -7/Factory Y-54 Guardian | x2 | -7/Factory | Authchip G-73 Enforcer | x3 | -6/Factory | Authchip O-24 Administrator | x1 | -6/Factory | Authchip O-24 Administrator | x1 | -4/Proximity Caves Alien Tech Used ----------------- None Achievements -------------- None Challenges ------------ None Game ------ Seed AutogunMetafiberSheargun Manual? 0 Play Time 08:29:33 Cumulative 233.9 hours Start 2024.03.31 @ 22:03:04 End 2024.04.01 @ 06:57:44 Sessions 3 Manual Loads 0 Difficulty Rogue Special Mode None Game No. 95 Rogue 95 Adventurer 0 Explorer 0 Win Type - Total 0 Types 0/0/0/0/0/0/0/0/0 Lore% 63 Gallery% 68 Achievement% 56 Wizard Run 0 Options --------- Layout 0 ASCII 0 Keyboard 1 Movement Arrows Keybinds 0 Fullscreen 1 Font 12/Proggy Map View 83x54 Zoom Use 0% Tactical HUD 1 Map Filters NONE Filters NONE Steam 0 RUN: ac175ee0-cb09-4d35-8e7a-e08776b4ed19